Cogmind - Beta 12 @@@ ROGUE MODE // 2023.04.02 @ 01:51:51 Player: MrProgressor Result: Destroyed by G-50 Soldier with Heavy Laser Performance ------------- Evolutions (4) 2000 Regions Visited (8) 1600 Robots Destroyed (105) 525 Value Destroyed (3166) 3166 Prototype IDs (44) 880 Alien Tech Used (0) 0 Bonus (682) 682 TOTAL SCORE: 8853 Bonus ------- Follower Combat Kills 558 Aligned with FarCom 300 Friendly Fire -176 Cogmind --------- Core Integrity 0/850 Matter 103/300 Energy 34/100 System Corruption 5% Temperature Danger (425) Movement Core (50) Location -6/Factory Parts ------- > --- POWER (2) -------- (None) > --- PROPULSION (5) --- (None) > --- UTILITY (6) ------ Scrap Engine Improved Cooling System > --- WEAPON (2) ------- (None) > --- INVENTORY (5) ---- Improved Cooling System Peak State ------------ > --- POWER ------------ Cooled Ion Engine Cooled Ion Engine > --- PROPULSION ------- Wheeled Compact-Armored Exoskeleton Compact Wheel Compact Wheel Armored Wheel Armored Wheel > --- UTILITY ---------- Armored Scrap Engine Humpback Improved Terrain Scanner Improved Terrain Scan Processor > --- WEAPON ----------- Guided EMP Blaster > --- INVENTORY -------- Cooled Ion Engine Armored Treads Nuclear Pulse Thruster Improved Heat Sink Improved Heat Sink Huge Storage Unit Humpback Humpback High-capacity Battery Structural Scanner Improved Targeting Computer Microactuators Improved Propulsion Shielding Hardened Medium Armor Plating Improved Heavy Armor Plating Improved Heavy Armor Plating Improved Heavy Armor Plating EM Disruption Field Improved Field Recycling Unit Advanced Beam Rifle Guided Plasma Cannon Enhanced Autogun Flak Gun Hypervelocity Gauss Rifle Missile Launcher Katana Katana Heavy Explosive Trap [Rating: 65] Favorites ----------- Power Cooled Ion Engine Engine Cooled Ion Engine Power Core Light Nuclear Core Propulsion Compact Wheel Treads Armored Treads Leg Aluminum Leg Wheel Compact Wheel Hover Unit Improved Hover Unit Flight Unit Improved VTOL Module Utility Humpback Device Improved Terrain Scanner Storage Humpback Processor Improved Terrain Scan Processor Hackware Hacking Suite Protection Hardened Medium Armor Plating Weapon Katana Energy Gun Advanced Beam Rifle Energy Cannon Guided Plasma Cannon Ballistic Gun Assault Rifle Ballistic Cannon Constructs Launcher Advanced EMP Blaster Impact Weapon Hammer Slashing Weapon Katana Build | -11 -10 -10 -10 -9 -8 -8 -8 -6 ------- Run | Jun Mat Min Exi Min Mat Sto Rec Fac Slots Evolved 8 | . . . . . 4 . . 4 Power 1 | . . . . . . . . 1 Propulsion 3 | . . . . . 2 . . 1 Utility 4 | . . . . . 2 . . 2 Weapon . | . . . . . . . . . Parts Attached 165 | . 3 2 1 6 40 39 21 53 Power 9 | . . . . . 2 4 . 3 Engine 8 | . . . . . 1 4 . 3 Core 1 | . . . . . 1 . . . Reactor . | . . . . . . . . . Propulsion 41 | . . 2 . 4 9 8 7 11 Treads 7 | . . . . 2 4 . . 1 Leg 1 | . . . . . . . 1 . Wheel 30 | . . 2 . 2 5 6 6 9 Hover 2 | . . . . . . 1 . 1 Flight 1 | . . . . . . 1 . . Utility 64 | . 2 . 1 . 12 15 8 26 Device 40 | . . . . . 9 13 5 13 Storage 4 | . 2 . 1 . . . . 1 Processor 3 | . . . . . . . . 3 Hackware 1 | . . . . . 1 . . . Protection 16 | . . . . . 2 2 3 9 Artifact . | . . . . . . . . . Weapon 51 | . 1 . . 2 17 12 6 13 Energy Gun 16 | . . . . 1 2 5 5 3 Energy Cannon 13 | . . . . 1 7 5 . . Ballistic Gun 12 | . 1 . . . 4 2 . 5 Ballistic Cannon . | . . . . . . . . . Launcher 3 | . . . . . 1 . . 2 Special Weapon . | . . . . . . . . . Impact Weapon 1 | . . . . . . . 1 . Slashing Weapon 6 | . . . . . 3 . . 3 Piercing Weapon . | . . . . . . . . . Special Melee Weapon . | . . . . . . . . . Unidentified Prototypes 15 | . . . . . 3 10 . 2 Parts Lost 54 | . 1 . . . 12 1 . 40 Power 6 | . . . . . 2 . . 4 Propulsion 15 | . . . . . 5 1 . 9 Utility 19 | . . . . . 2 . . 17 Weapon 13 | . 1 . . . 3 . . 9 Highest Loss Streak 36 | . 1 . . . 12 1 . 36 To Critical Strikes 1 | . . . . . . . . 1 Average Slot Usage (%) 87 | . 96 100 94 85 87 89 90 83 Engine 11 | . 14 14 14 14 8 9 9 12 Leg 1 | . 28 . . . . . . . Wheel 30 | . . 28 28 28 32 35 36 29 Device 10 | . . . . . 11 14 16 11 Storage 9 | . 24 28 22 14 9 9 9 5 Processor 1 | . . . . . . . . 3 Hackware 1 | . . . . . 4 3 . . Protection 1 | . . . . . 1 . 1 3 Energy Gun 7 | . 23 14 14 13 2 . 9 8 Energy Cannon 2 | . . . . . 5 8 . . Ballistic Gun 3 | . 4 14 14 14 4 . . 1 Slashing Weapon 4 | . . . . . 4 9 8 2 Naked Turns . | . . . . . . . . . Heaviest Build 231 | 14 54 54 209 217 222 222 222 231 Greatest Support 80 | 20 20 20 20 26 58 58 64 80 Greatest Overweight (x) 14 | . 2 2 10 10 10 6 5 14 Average Overweight (x) 3 | . . 2 3 9 3 3 3 2 Largest Inventory Capacity 35 | . 20 20 35 35 35 35 35 35 Average Capacity 33 | . 13 20 25 35 35 35 35 34 Most Carried 35 | . 16 16 23 34 35 35 35 35 Average Carried 30 | . 9 16 16 28 31 34 34 32 Final Capacity 35 | 8 20 20 35 35 35 35 35 5 Final Carried 35 | 6 16 16 23 33 35 35 35 1 Scrap Engine Consumption 28 | . . . . . . . . 28 Constructs Created 4 | . . . . . . . . 4 Constructs Modified 5 | . . . . . . . . 5 Class Distribution -------------------- 49% | Hauler-Mutant 21% | Hauler-Assassin 9% | Commander-Assassin 9% | Mutant 9% | Hauler-Skirmisher Dominant Class ---------------- Mutant | -10/Materials Mutant | -10/Mines Mutant | -10/Exiles Hauler-Mutant | -9/Mines Hauler-Mutant | -8/Materials Hauler-Mutant | -8/Storage Commander-Assassin | -8/Recycling Hauler-Assassin | -6/Factory Resources | -11 -10 -10 -10 -9 -8 -8 -8 -6 ----------- Run | Jun Mat Min Exi Min Mat Sto Rec Fac Matter Collected 2285 | 200 38 . 40 52 546 492 264 653 Remotely . | . . . . . . . . . Salvage Created 4872 | . 277 . . 77 1044 1173 695 1606 Parts 227 | . 13 . . 3 44 62 24 81 Haulers Intercepted 6 | . 1 . . . 1 4 . . Recyclers Shooed 12 | . . . . . . . 3 9 Parts Field Recycled . | . . . . . . . . . Retrieved Matter . | . . . . . . . . . Parts Self-Destructed . | . . . . . . . . . Prevented . | . . . . . . . . . Kills | -11 -10 -10 -10 -9 -8 -8 -8 -6 ------- Run | Jun Mat Min Exi Min Mat Sto Rec Fac Combat Hostiles Destroyed 52 | . 4 . . . 11 18 1 18 Melee 3 | . . . . . . 2 . 1 Guns 20 | . 3 . . . 5 1 1 10 Cannons 24 | . . . . . 6 15 . 3 AOE 4 | . 1 . . . . . . 3 Classes Destroyed 15 | . 3 . . 1 5 2 1 3 Worker 9 | . . . . . 3 . . 6 Builder 9 | . . . . . 2 3 . 4 Hauler 6 | . 1 . . . 1 4 . . Recycler 15 | . . . . 1 2 . 8 4 Operator 3 | . . . . . 1 1 . 1 Watcher 10 | . 2 . . . 4 2 . 2 Swarmer 2 | . . . . . . 2 . . Grunt 24 | . 4 . . . 8 9 1 2 Brawler 2 | . . . . . 1 1 . . Duelist 1 | . . . . . . . . 1 Sentry 8 | . . . . . 2 5 . 1 Demolisher 1 | . . . . . . . 1 . Specialist 1 | . . . . . . . . 1 Hunter 6 | . . . . . . 1 . 5 Programmer 8 | . . . . . . . . 8 Best Kill Streak 7 | . 3 . . 1 6 7 6 7 Combat Bots Only 6 | . 2 . . . 5 6 1 6 Max Kills in Single Turn 3 | . 1 . . 1 2 1 2 3 Gunslinging 1 | . . . . . 1 . . . Exploded 2 | . 1 . . . . . . 2 Melee 1 | . . . . . . 1 . 1 Uniques/NPCs Destroyed . | . . . . . . . . . Combat | -11 -10 -10 -10 -9 -8 -8 -8 -6 -------- Run | Jun Mat Min Exi Min Mat Sto Rec Fac Damage Taken 6985 | . 218 . . . 1782 341 . 4644 Core 1329 | . 56 . . . 357 60 . 856 Absorbed by Shields . | . . . . . . . . . Redirected to Shielding 115 | . . . . . 5 44 . 66 Regen/Repaired (Parts) 92 | . . . . . . . . 92 Core Remaining (%) 67 | 100 . . . 77 . . 24 . Volleys Fired 249 | . 17 . . 5 67 54 10 96 Largest 2 | . 2 . . 2 2 1 2 2 Hottest 122 | . 80 . . 120 120 120 120 122 Shots Fired 367 | . 34 . . 9 99 55 11 159 Gun 253 | . 34 . . 8 67 7 11 126 Cannon 107 | . . . . 1 32 48 . 26 Launcher 7 | . . . . . . . . 7 Special . | . . . . . . . . . Kinetic 115 | . 6 . . 4 35 1 . 69 Thermal 198 | . . . . 1 49 54 11 83 Explosive . | . . . . . . . . . Electromagnetic 54 | . 28 . . 4 15 . . 7 Robot Hit Streak 20 | . 5 . . 1 19 15 17 20 Robot Miss Streak 7 | . 4 . . 3 3 2 . 7 Penetration Max . | . . . . . . . . . Secondary Targets 3 | . . . . . 3 . . . Max Gunslinging Chain 1 | . . . . . 1 . . . Shots Hit Robots 268 | . 20 . . 2 67 37 16 126 Core Hits 196 | . 11 . . 3 38 28 8 108 Critical Kills . | . . . . . . . . . Critical Parts Destroyed . | . . . . . . . . . Critical Strikes 8 | . . . . . 3 1 . 4 Burn 2 | . . . . . 1 . . 1 Blast 1 | . . . . . . . . 1 Sever 5 | . . . . . 2 1 . 2 Melee Attacks 95 | . . . . . 19 42 19 15 Impact . | . . . . . . . . . Slashing 95 | . . . . . 19 42 19 15 Piercing . | . . . . . . . . . Sneak Attacks 23 | . . . . . 2 7 9 5 Combat Hostiles . | . . . . . . . . . Follow-up Attacks . | . . . . . . . . . Damage Inflicted 9445 | . 305 . . 42 2073 2492 854 3679 Guns 3118 | . 280 . . 42 736 61 73 1926 Cannons 3182 | . . . . . 974 1706 . 502 Explosions 764 | . 25 . . . 57 . . 682 Melee 2381 | . . . . . 306 725 781 569 Ramming . | . . . . . . . . . Kinetic 1604 | . 24 . . 12 337 . . 1231 Thermal 4806 | . 25 . . . 1261 1767 73 1680 Explosive . | . . . . . . . . . Electromagnetic 654 | . 256 . . 30 169 . . 199 Impact . | . . . . . . . . . Slashing 2381 | . . . . . 306 725 781 569 Piercing . | . . . . . . . . . Highest Corruption 6 | . . . . . 6 6 6 5 Average Corruption 4 | . . . . . 5 6 6 1 Corruption Purged . | . . . . . . . . . Corruption Blocked . | . . . . . . . . . Effects 99 | . . . . . 13 49 28 9 Message Errors 14 | . . . . . 2 5 6 1 Matter Fused 29 | . . . . . 3 17 7 2 Heat Flow Errors 10 | . . . . . . 6 3 1 Energy Discharges 15 | . . . . . 1 9 3 2 Parts Rejected 1 | . . . . . . . . 1 Data Loss (minor) 20 | . . . . . 2 9 8 1 Data Loss (major) 4 | . . . . . 1 2 1 . Misfires 3 | . . . . . 1 1 . 1 Alerts 1 | . . . . . 1 . . . Weapon Failures 2 | . . . . . 2 . . . Overload Shots . | . . . . . . . . . Overflow Damage 540 | . . . . . 42 176 178 144 Projectiles 77 | . . . . . 8 63 . 6 Explosions 76 | . . . . . . . . 76 Melee 387 | . . . . . 34 113 178 62 Knockbacks 11 | . . . . . . . . 11 Impact . | . . . . . . . . . Kinetic 8 | . . . . . . . . 8 Secondary 3 | . . . . . . . . 3 Self-Inflicted Damage 25 | . . . . . . . . 25 Shots 2 | . . . . . . . . 2 Rammed . | . . . . . . . . . Targets Rammed . | . . . . . . . . . Kicked . | . . . . . . . . . Crushed . | . . . . . . . . . Highest Temperature 808 | . 199 . . 80 402 316 246 808 Average Temperature 135 | . 80 . . 48 94 111 90 197 Received Heat Transfer 1806 | . 123 . . . 675 84 . 924 Effects 40 | . . . . . 2 . . 38 Shutdowns 6 | . . . . . . . . 6 Energy Bleed 2 | . . . . . . . . 2 Interference 5 | . . . . . 1 . . 4 Matter Decay 3 | . . . . . 1 . . 2 Short Circuit 3 | . . . . . . . . 3 Damage (minor) 4 | . . . . . . . . 4 Damage (major) 13 | . . . . . . . . 13 Damage (core) 4 | . . . . . . . . 4 Siege Activations . | . . . . . . . . . Robots Corrupted . | . . . . . . . . . Combat Hostiles . | . . . . . . . . . Parts Fried 4 | . . . . . 2 . . 2 Impact Corruptions . | . . . . . . . . . Robots Melted 1 | . . . . . . . . 1 Combat Hostiles 1 | . . . . . . . . 1 Parts Melted 17 | . . . . . 8 5 . 4 Heat Transferred 9537 | . 50 . . . 2820 3951 148 2568 Parts Sabotaged . | . . . . . . . . . Parts Stolen . | . . . . . . . . . Parts Stripped . | . . . . . . . . . Power Chain Reactions 5 | . 1 . . . 1 . . 3 Missiles Intercepted . | . . . . . . . . . Alert | -11 -10 -10 -10 -9 -8 -8 -8 -6 ------- Run | Jun Mat Min Exi Min Mat Sto Rec Fac Peak Influence 401 | . 234 91 . 61 170 401 214 350 Initial 156 | . . 91 . . 23 71 156 72 Average 85 | . 93 91 . 40 61 119 101 75 Maximum Alert Level 2 | . 1 . . . . 2 1 1 Low Security (%) 86 | . 69 100 . 100 100 79 78 88 Level 1 11 | . 30 . . . . 15 21 11 Level 2 1 | . . . . . . 5 . . Level 3 . | . . . . . . . . . Level 4 . | . . . . . . . . . Level 5 . | . . . . . . . . . High Security . | . . . . . . . . . Max Security . | . . . . . . . . . Squads Dispatched 17 | . 1 . . . 3 3 . 10 Investigation 7 | . . . . . . 3 . 4 Extermination 5 | . . . . . . . . 5 Reinforcement 5 | . 1 . . . 3 . . 1 Assault . | . . . . . . . . . Garrison . | . . . . . . . . . Intercept . | . . . . . . . . . Searches Triggered . | . . . . . . . . . Construction Impeded . | . . . . . . . . . Haulers Reinforced . | . . . . . . . . . Active Scanning Responses . | . . . . . . . . . Cargo Convoy Interrupts 1 | . . . . . . . . 1 Stealth | -11 -10 -10 -10 -9 -8 -8 -8 -6 --------- Run | Jun Mat Min Exi Min Mat Sto Rec Fac Distress Signals 5 | . . . . . 1 2 1 1 Communications Jammed . | . . . . . . . . . Distress Signals . | . . . . . . . . . Times Spotted 86 | . 8 . . 2 17 13 10 36 Peak Tracking Total 10 | . 4 . . 2 4 4 10 7 Tactical Retreats 1 | . . . . . . 1 . . Traps | -11 -10 -10 -10 -9 -8 -8 -8 -6 ------- Run | Jun Mat Min Exi Min Mat Sto Rec Fac Traps Triggered 4 | . . . . . . 3 . 1 Indirectly . | . . . . . . . . . Trap Hack Attempts . | . . . . . . . . . Triggered . | . . . . . . . . . Disarmed . | . . . . . . . . . Reprogrammed . | . . . . . . . . . Reused 3 | . . . . . . . . 3 Traps Extracted . | . . . . . . . . . Installed 4 | . . . . . . . . 4 Triggered 3 | . . . . . . . . 3 Most Traps Carried 5 | . . . . 5 5 5 5 5 Machines | -11 -10 -10 -10 -9 -8 -8 -8 -6 ---------- Run | Jun Mat Min Exi Min Mat Sto Rec Fac Machines Disabled 16 | . 3 . . . 2 5 . 6 Max in Single Turn 3 | . 1 . . . 1 1 . 3 Machines Repaired . | . . . . . . . . . Machines Sabotaged . | . . . . . . . . . Overloaded Fab Kills . | . . . . . . . . . Hacking | -11 -10 -10 -10 -9 -8 -8 -8 -6 --------- Run | Jun Mat Min Exi Min Mat Sto Rec Fac Machines Accessed 29 | . 1 . 1 . 2 9 8 8 Terminals 22 | . 1 . . . 2 9 5 5 Fabricators 2 | . . . . . . . . 2 Repair Stations . | . . . . . . . . . Recycling Units 3 | . . . . . . . 3 . Scanalyzers 1 | . . . . . . . . 1 Garrison Access . | . . . . . . . . . Total Hacks 73 | . 2 . 1 . 5 26 18 21 Successful 30 | . 1 . 1 . 2 9 12 5 Failed 42 | . 1 . . . 3 16 6 16 Catastrophic 9 | . 1 . . . . 4 1 3 Database Lockouts 1 | . . . . . . 1 . . Manual 31 | . 1 . 1 . 2 11 7 9 Terminals 53 | . 2 . . . 5 26 9 11 Fabricators 6 | . . . . . . . . 6 Repair Stations . | . . . . . . . . . Recycling Units 9 | . . . . . . . 9 . Scanalyzers 4 | . . . . . . . . 4 Garrison Access . | . . . . . . . . . Terminal Hacks 18 | . 1 . 1 . 2 9 4 1 Part Schematic 4 | . . . . . . 1 3 . Robot Analysis 4 | . . . . . 1 3 . . Prototype ID Bank 2 | . . . . . 1 1 . . Level Access Points 1 | . . . . . . 1 . . Branch Access Points 1 | . . . . . . 1 . . Terminal Index 1 | . . . . . . 1 . . Locate Traps 2 | . 1 . . . . 1 . . Recall Investigation 1 | . . . . . . . . 1 Zone Layout 1 | . . . . . . . 1 . EX-Prototype ID Bank 1 | . . . 1 . . . . . Fabricator Hacks 3 | . . . . . . . . 3 Load Schematic 2 | . . . . . . . . 2 Build 1 | . . . . . . . . 1 Repair Station Hacks . | . . . . . . . . . Recycling Unit Hacks 6 | . . . . . . . 6 . Process 1 | . . . . . . . 1 . Report Inventory 3 | . . . . . . . 3 . Retrieve Matter 1 | . . . . . . . 1 . Retrieve Components 1 | . . . . . . . 1 . Scanalyzer 1 | . . . . . . . . 1 Insert Component 1 | . . . . . . . . 1 Garrison Access Hacks . | . . . . . . . . . Unauthorized Hacks 2 | . . . . . . . 2 . Terminals . | . . . . . . . . . Fabricators . | . . . . . . . . . Repair Stations . | . . . . . . . . . Recycling Units 2 | . . . . . . . 2 . Reject 2 | . . . . . . . 2 . Scanalyzers . | . . . . . . . . . Garrison Access . | . . . . . . . . . Data Cores Recovered 1 | . . . . . . 1 . . Used . | . . . . . . . . . Hacking Detections 27 | . 1 . . . 2 9 7 8 Full Trace Events 6 | . . . . . . 3 . 3 Feedback Events . | . . . . . . . . . Feedback Blocked . | . . . . . . . . . Robot Schematics Acquired . | . . . . . . . . . Robots Built . | . . . . . . . . . Authchips . | . . . . . . . . . Time . | . . . . . . . . . Total Robot Build Rating . | . . . . . . . . . Part Schematics Acquired 4 | . . . . . . 1 3 . Parts Built 2 | . . . . . . . . 2 Authchips . | . . . . . . . . . Time 62 | . . . . . . . . 62 Total Part Build Rating 4 | . . . . . . . . 4 Parts Repaired . | . . . . . . . . . Time . | . . . . . . . . . Parts Recycled . | . . . . . . . . . Recycled Matter 6 | . . . . . . . 6 . Retrieved Matter 6 | . . . . . . . 6 . Retrieved Components 9 | . . . . . . . 9 . Parts Scanalyzed 1 | . . . . . . . . 1 Part Schematics Acquired . | . . . . . . . . . Parts Damaged . | . . . . . . . . . Bothacking | -11 -10 -10 -10 -9 -8 -8 -8 -6 ------------ Run | Jun Mat Min Exi Min Mat Sto Rec Fac Used RIF Installer . | . . . . . . . . . Robots Hacked . | . . . . . . . . . Non-combat . | . . . . . . . . . Combat . | . . . . . . . . . Robot Hacks Applied . | . . . . . . . . . Relay Couplers Released . | . . . . . . . . . Fabnet Peak Effective % . | . . . . . . . . . Robots Rewired 3 | . . . . . . . 3 . Allies Hacked 1 | . . . . . . . . 1 Hacks Repelled . | . . . . . . . . . Allies | -11 -10 -10 -10 -9 -8 -8 -8 -6 -------- Run | Jun Mat Min Exi Min Mat Sto Rec Fac Total Allies 17 | . . 3 . . . 11 3 . Largest Group 11 | . . 3 3 3 2 11 11 7 Highest-Rated Group 273 | . . 40 40 40 24 273 273 111 Highest-Rated Ally 100 | . . 16 16 16 16 100 100 29 Total Orders . | . . . . . . . . . Ally Attacks 110 | . . . . 24 5 11 42 28 Total Damage 1785 | . . . . 256 56 483 581 409 Kills 19 | . . . . 4 . 4 9 2 Allies Corrupted 2 | . . . . . . . 2 . Allies Melted . | . . . . . . . . . Intel | -11 -10 -10 -10 -9 -8 -8 -8 -6 ------- Run | Jun Mat Min Exi Min Mat Sto Rec Fac Robot Analysis Total 4 | . . . . . 1 3 . . Derelict Logs Recovered 1 | . . . . 1 . . . . Drone Launches . | . . . . . . . . . Drone Recoveries . | . . . . . . . . . Exploration | -11 -10 -10 -10 -9 -8 -8 -8 -6 ------------- Run | Jun Mat Min Exi Min Mat Sto Rec Fac Turns Passed 8616 | . 324 55 607 630 1148 1908 1004 2940 Spaces Moved 4182 | 1 157 41 438 265 302 965 595 1418 Core 9 | . . . . . . . . 9 Treads 5 | . . . . . 4 . . 1 Legs 158 | 1 157 . . . . . . . Wheels 4010 | . . 41 438 265 298 965 595 1408 Hover . | . . . . . . . . . Flight . | . . . . . . . . . Fastest Speed 50 | 120 120 110 110 210 140 140 140 50 Average Speed 147 | 120 163 110 132 221 159 144 144 138 Slowest Speed 960 | 120 260 110 230 230 960 176 161 750 Overloaded Moves . | . . . . . . . . . Propulsion Burnouts . | . . . . . . . . . Robots Hopped . | . . . . . . . . . Cave-ins Triggered 1 | . . . . . 1 . . . Exploration Rate (%) 43 | 2 31 21 71 40 24 81 96 24 Regions Visited 8 Branch Regions 5 Pre-discovered Areas . | . . . . . . . . . Known Exits Taken 2 | . . . . . 1 1 . . Unknown Exits Taken 6 | 1 1 1 1 1 . . 1 . Scrap Searched . | . . . . . . . . . Spaces Dug 35 | . . . . . 8 16 8 3 Terrain Destroyed 107 | . 2 . . 1 12 16 8 68 Melee 32 | . . . . . 8 16 5 3 Projectile 4 | . . . . 1 . . 3 . AOE 71 | . 2 . . . 4 . . 65 Terrain Rammed . | . . . . . . . . . Walls Destroyed . | . . . . . . . . . Machines Disabled . | . . . . . . . . . Actions | -11 -10 -10 -10 -9 -8 -8 -8 -6 --------- Run | Jun Mat Min Exi Min Mat Sto Rec Fac Total 6115 | . 190 50 467 299 836 1357 695 2221 Wait 1142 | . 3 8 . 6 384 183 11 547 Move 4174 | . 156 40 437 264 301 964 594 1418 Hop . | . . . . . . . . . Pick Up 147 | . 11 . 23 14 19 25 4 51 Fast Attach 38 | . 1 . . . 5 8 11 13 Attach 35 | . 1 . 1 1 14 3 . 15 Detach 2 | . . . . . . . . 2 Swap 92 | . 1 2 . 5 21 28 10 25 Drop 102 | . . . 6 4 6 33 18 35 Fire 249 | . 17 . . 5 67 54 10 96 Melee 95 | . . . . . 19 42 19 15 Ram . | . . . . . . . . . Kick . | . . . . . . . . . Crush . | . . . . . . . . . Escape Stasis 16 | . . . . . . 16 . . Rewire 19 | . . . . . . 1 18 . Trap 4 | . . . . . . . . 4 Miscellaneous . | . . . . . . . . . Route ------- -11/Junkyard -10/Materials -10/Mines -10/Exiles -9/Mines -8/Materials -8/Storage (discovered 2 exits: *Fac / *Rec) -8/Recycling -6/Factory (discovered 2 exits: [*Low] / [Ext]) History --------- Turn | Location | Event 1 | -11/Junkyard | Discovered new exit (range 0) 1 | -11/Junkyard | Entered Materials 273 | -10/Materials | Discovered new exit (range 9) 317 | -10/Materials | Build established: Mutant 325 | -10/Materials | Entered Mines 341 | -10/Mines | Assisted by bots powering up and referring to "LRC-V3" 368 | -10/Mines | Deemed a non-threat by the Exiles lab entrance 368 | -10/Mines | Discovered new exit (range 5) 380 | -10/Mines | Entered Exiles 380 | -10/Exiles | Accompanied by 3 allies 408 | -10/Exiles | Met 8R-AWN 427 | -10/Exiles | Met EX-HEX 456 | -10/Exiles | Met EX-BIN 470 | -10/Exiles | Aligned with FarCom system 471 | -10/Exiles | Given EX-Vault access code 496 | -10/Exiles | Opened EX-Vault 505 | -10/Exiles | Found Gui. Plasma Cannon 529 | -10/Exiles | Warned to stay clear of 0b10 Research branches 561 | -10/Exiles | Met EX-DEC 961 | -10/Exiles | Discovered new exit (range 12) 987 | -10/Exiles | Left Exiles lab with Gui. Plasma Cannon 987 | -10/Exiles | Entered Mines 987 | -9/Mines | Accompanied by 3 allies 1039 | -9/Mines | Discovered new exit (range 11) 1043 | -9/Mines | Met a Derelict bent on vengeance 1066 | -9/Mines | Build established: Hauler-Mutant 1340 | -9/Mines | Found a hidden stash of uninstalled traps 1617 | -9/Mines | Entered Materials 1617 | -8/Materials | Accompanied by 2 allies 1617 | -8/Materials | Evolved 4 slots: Propulsion x2, Utility x2 1618 | -8/Materials | Identified exit to Storage 2380 | -8/Materials | Crushed by falling debris 2425 | -8/Materials | Core integrity fell below 50% 2479 | -8/Materials | Lost 12 parts (2p5n2u3w) 2765 | -8/Materials | Entered Storage 2807 | -8/Storage | Identified exit to Factory 3254 | -8/Storage | Identified exit to Recycling 3716 | -8/Storage | Met 01-MTF 4385 | -8/Storage | Central database locked down 4594 | -8/Storage | Assisted by bots powering up and referring to "LRC-V3" 4673 | -8/Storage | Entered Recycling 4673 | -8/Recycling | Accompanied by 11 allies (01-MTF) 4676 | -8/Recycling | Found Scrap Engine 4678 | -8/Recycling | 01-MTF left 5064 | -8/Recycling | Build established: Commander-Assassin 5644 | -8/Recycling | Discovered new exit (range 6) 5677 | -8/Recycling | Entered Factory 5677 | -6/Factory | Accompanied by 7 allies 5677 | -6/Factory | Evolved 4 slots: Power x1, Propulsion x1, Utility x2 5865 | -6/Factory | Discovered new exit (range 15) 6048 | -6/Factory | P-60 Hacker assimilated allied Trooper 3g 6371 | -6/Factory | Build established: Hauler-Mutant 7370 | -6/Factory | Build established: Hauler-Assassin 7540 | -6/Factory | Discovered new exit (range 15) 7741 | -6/Factory | Fabricated Arm. Wheel? 8506 | -6/Factory | Cargo convoy interrupted 8577 | -6/Factory | Core integrity fell below 50% 8612 | -6/Factory | Core integrity fell below 20% 8617 | -6/Factory | Destroyed by G-50 Soldier with Heavy Laser Last Messages --------------- 08607_ Overheating: Hrd. Heavy Armor Plating damaged (-92). 08608_ Overheating: Scrap Engine damaged (-15). 08610_ K-01 Serf collects debris. 08610_ Imp. Heavy Armor Plating destroyed. 08611_ Hrd. Heavy Armor Plating destroyed. 08611_ Acquired Imp. Cooling System. 08612_ Overheating: Core damaged (-102). 08612_ Flak Gun destroyed. 08612_ Critical hit (Burn: +37). 08613_ Overheating: Energy bleed (-20). 08613_ Acquired Imp. Cooling System. 08613_ K-01 Serf collects debris. 08614_ Broken Wheel destroyed. 08615_ Acquired 22 matter. 08615_ R-10 Processor collects Lgt. Angular Momentum Engine. 08616_ Overheating: Energy bleed (-13). 08616_ K-01 Serf collects debris. 08617_ Overheating: Imp. Cooling System damaged (-36). 08617_ Overheating: Scrap Engine damaged (-8). 08617_ System corrupted: Energy discharge (-15). Map ----- +----------------------------------------------------+ | ?????????????????????????????????????????????????? | | ?????????????????????????????????????????????????? | | ?????????????????????????????????????????????????? | | ?????????????????????????????????????????????????? | | ?????????????????????????????????????????????????? | | ?????????????????????????????????????????????????? | | ?????????????????????????????????????????????????? | | ?????????????????????????????????????????????????? | | ?????????????????????????????????????????????????? | | ?????????????????????????????????????????????????? | | ?????????????????????????? ??????????????????????? | | ?????????????????????????? ??????????????????????? | | ?????????????????????????? ??????????????????????? | | ?????????????????????????? #??##??????? ?????????? | | ?????????????????????????# ###???????????????????? | | ????????????????????????# ????? ??????????????? | | ????????????????????????# ?? ?????????? ??????? | | ????????????????????????# ???? ??? ??? ???????? | | ????????????????????????# #??##??#?#??##???????? | | ????????????????????????# #??? ? ????? ??????? | | ????????????????????????# #?## ??? ??"???? ???? | | ????????????????????????#u ##????????""?""? ????? | | ????????????????????????# R#??#? ? "?""?"??#??? | | ????????????????????????# #??? ?? ???"??" ??#? | | ???????????????????? ? ?# #?????? ??? ?? ?#?#? | | ??????????????????????? #@i #???###########?#?#??? | | ??????????????????? ? ??# ##??# ##????#? | | ??????????????????????#?# x###?# ! #?##?#?? | | ??????????????????#??#?## #?#?# #???#?#? | | ????????????????????###?# ##?## """"""" ######?? | | ??????????????????##?#??#! T##?# """"""" ###??#?? | | ????????????????????????# ##?# """"""" ##??#?#? | | ???????????????????????##ggR##?## """"""" ##???### | | ?????????????????#???#?##%k ##### ##? ???" | | ????????????????#???????# % ###?#####+####### ? ? | | ???????????????# ####%% ####### ###?#? ""? | | ???????????????? "T % % ##?#????"? | | ???????????????? "" % T #??## ?""? | | ???????????????# ###??? ?? | | ???????????????# ############## #?#?#? ? | | ??????"?"?????### #????####??#?### ######?? | | ???#????? ??? ??# ??#?#??#??##??### ###### ? | | #?###"?????? ???# ? ?#??#?###?#?#?## ###### | | #?##?????? ?????#? ???#?#??##?#????# ###??#? | | ##?##????? ????##??????? ? ??##?## #??### | | ?##?#? ???? ????? ? #???? ?#??## ###### | | #?????##?+#???????? #???? ? ###### | | ? ????? ???? # ?? ? ? ?#?### | | ? ? ?? ???? ??"???"?? ###### | | ?? ? ? ?? ?#???????"?#??#?# """"""" | +----------------------------------------------------+ Best States ------------- Heat Dissipation 55 Energy Generation 23 Energy Capacity 460 Matter Stores 300 Matter Capacity 300 Sight Range 16 Terrain Scan Range 16 Terrain Scan Density 110 Armor Coverage 1200 Resistance: EM 25 Core Shielding 20 Propulsion Shielding 66 Evasion (%) 55 Recoil Reduction 2 Offensive Hacking 10 Item Schematics ----------------- Imp. Medium Treads | -8/Storage | Hacked Arm. Wheel | -8/Recycling | Hacked Com. Wheel | -8/Recycling | Hacked Axe | -8/Recycling | Hacked Robot Schematics ------------------ None Fabricated ------------ Arm. Wheel | x2 | -6/Factory Alien Tech Used ----------------- None Achievements -------------- None Challenges ------------ None Game ------ Seed BackupInsulationAccelerator Manual? 0 Play Time 03:39:05 Cumulative 118.4 hours Start 2023.03.30 @ 19:13:24 End 2023.04.02 @ 01:51:51 Sessions 10 Manual Loads 0 Difficulty Rogue Special Mode None Game No. 48 Rogue 48 Adventurer 0 Explorer 0 Win Type - Total 0 Types 0/0/0/0/0/0/0/0/0 Lore% 43 Gallery% 52 Achievement% 40 Wizard Run 0 Options --------- ASCII 0 Keyboard 0 Movement Numpad Keybinds 1 Fullscreen 2 Font 18/X11 Map View 76x50 Tactical HUD 1 Map Filters NONE Filters NONE Steam 1 RUN: 6479f797-1fa6-4f1d-9bff-16f3fc21af60